bitfinex-derivatives/quotes_BTCF0:USTF0_20251030
["timestamp","ask_amount","ask_price","bid_price","bid_amount"]
[1761823856242,0.21176169,110060.0,110050.0,0.63835091]
[1761823862839,0.21176169,110060.0,110050.0,0.47468517]
[1761823863446,0.42542743,110060.0,110050.0,0.06080757]
[1761823871750,0.81889012,110060.0,110050.0,0.03923757]
[1761823871957,0.84439366,110060.0,110050.0,0.01769757]
[1761823872453,0.84711366,110060.0,110050.0,0.04019757]
[1761823872756,0.84711366,110060.0,110050.0,0.06269757]
[1761823872960,1.2307794,110060.0,110050.0,0.01769757]
[1761823873156,2.21711075,110060.0,110050.0,0.00497757]
[1761823874353,2.20079597,110060.0,110050.0,0.00497757]
[1761823875456,1.28344501,110060.0,110040.0,0.05795]
[1761823875752,1.11705927,110060.0,110050.0,0.03509]
[1761823875956,1.79161927,110060.0,110050.0,0.0568]
[1761823876147,1.77529103,110060.0,110050.0,0.0568]
[1761823876350,1.97700507,110060.0,110050.0,0.0568]
[1761823876550,1.97428507,110060.0,110050.0,0.0568]
[1761823876746,2.08895677,110060.0,110050.0,0.0568]
[1761823877155,2.08795119,110060.0,110050.0,0.0568]
[1761823877858,2.10428501,110060.0,110050.0,0.0568]
[1761823878057,2.10528501,110060.0,110050.0,0.0568]
[1761823878262,2.10428501,110060.0,110050.0,0.0568]
[1761823878560,2.10728501,110060.0,110050.0,0.0568]
[1761823878762,2.10628501,110060.0,110050.0,0.0568]
[1761823878955,2.10828501,110060.0,110050.0,0.0568]
[1761823879350,2.10828501,110060.0,110050.0,0.01275]
[1761823879557,2.10828501,110060.0,110050.0,0.0568]
[1761823880954,2.70828501,110060.0,110050.0,0.0568]
[1761823881854,2.70828501,110060.0,110050.0,0.05804386]
[1761823883461,2.54459517,110060.0,110050.0,0.05804386]
[1761823884857,2.54459517,110060.0,110050.0,0.03633386]
[1761823886563,2.54459517,110060.0,110050.0,0.03633386]
[1761823886955,2.54459517,110060.0,110050.0,0.05804386]
[1761823887764,2.52823534,110060.0,110050.0,0.05804386]
[1761823888263,2.52823534,110060.0,110050.0,0.03633386]
[1761823889867,2.52823534,110060.0,110050.0,0.05804386]
[1761823890574,1.69447534,110060.0,110050.0,0.05804386]
[1761823890766,2.05827534,110060.0,110050.0,0.05804386]
[1761823891570,2.31827534,110060.0,110050.0,0.01399386]
[1761823891870,2.45827534,110060.0,110050.0,0.01399386]
[1761823892169,2.46099534,110060.0,110050.0,0.01464593]
[1761823892563,2.55827534,110060.0,110050.0,0.01464593]
[1761823892870,2.56827534,110060.0,110050.0,0.01464593]
[1761823893070,2.2509462,110060.0,110020.0,0.03608]
[1761823893272,0.88524164,110030.0,110020.0,0.01374]
[1761823893470,2.04328576,110030.0,110010.0,0.0568]
[1761823893667,0.54892525,110020.0,110010.0,0.0568]
[1761823893866,1.15052474,110020.0,110010.0,0.0568]
[1761823894068,1.15052474,110020.0,110010.0,0.06589]
[1761823894670,0.87052474,110020.0,110010.0,0.06589]
[1761823895174,0.86952474,110020.0,110010.0,0.06589]
[1761823895885,0.87152474,110020.0,110010.0,0.06589]
[1761823896074,1.02352474,110020.0,110010.0,0.06589]
[1761823897778,1.02333113,110020.0,110010.0,0.06589]
[1761823899478,1.0323563,110020.0,110010.0,0.06589]
[1761823910797,1.19599794,110020.0,110000.0,0.05706]
[1761823910998,1.00196328,110010.0,110000.0,0.06615]
[1761823911199,1.38339611,110010.0,110000.0,0.06615]
[1761823912400,1.40785277,110010.0,110000.0,0.06615]
[1761823913401,1.40885277,110010.0,110000.0,0.06615]
[1761823915397,1.50885277,110010.0,110000.0,0.06615]
[1761823918589,1.51704074,110010.0,110000.0,0.06615]
[1761823919498,1.51704074,110010.0,110000.0,0.02184]
[1761823920501,1.51976074,110010.0,110000.0,0.02184]
[1761823920692,1.51704074,110010.0,110000.0,0.02184]
[1761823920997,1.54615107,110010.0,109990.0,0.03454]
[1761823921203,0.55704892,110000.0,109990.0,0.03454]
[1761823921387,1.22124267,110000.0,109980.0,0.01275]
[1761823921588,1.02914499,109990.0,109980.0,0.01275]
[1761823921794,1.69604431,109990.0,109980.0,0.01275]
[1761823922604,1.69604431,109990.0,109980.0,0.01575]
[1761823922897,1.79604431,109990.0,109980.0,0.01575]
[1761823923597,1.79804431,109990.0,109980.0,0.03754]
[1761823923901,1.79804431,109990.0,109980.0,0.06006]
[1761823924089,1.79904431,109990.0,109980.0,0.05706]
[1761823924497,1.63540267,109990.0,109980.0,0.05706]
[1761823924999,1.79904431,109990.0,109980.0,0.05706]
[1761823925601,1.79904431,109990.0,109980.0,0.01275]
[1761823927004,1.76643703,109990.0,109980.0,0.01275]
[1761823927903,1.79904431,109990.0,109980.0,0.01275]
[1761823929402,1.79904431,109990.0,109980.0,0.02184]
[1761823930608,1.79904431,109990.0,109980.0,0.04505]
[1761823931805,1.79904431,109990.0,109980.0,0.02184]
[1761823932191,1.80176431,109990.0,109970.0,0.05712]
[1761823932395,0.71250374,109980.0,109970.0,0.05712]
[1761823932596,1.28397749,109980.0,109970.0,0.05712]
[1761823933301,1.38397749,109980.0,109970.0,0.05712]
[1761823933701,1.08397749,109980.0,109970.0,0.05712]
[1761823933906,0.80397749,109980.0,109970.0,0.05712]
[1761823934498,1.00397749,109980.0,109970.0,0.05712]
[1761823934906,1.01291528,109980.0,109970.0,0.05712]
[1761823935108,1.01391528,109980.0,109970.0,0.05712]
[1761823943216,1.04652256,109980.0,109970.0,0.05712]
[1761823944012,1.01391528,109980.0,109970.0,0.05712]
[1761823944215,1.04652256,109980.0,109970.0,0.05712]
[1761823945199,1.0221021,109980.0,109970.0,0.05712]
[1761823945403,1.02256052,109980.0,109970.0,0.05712]
[1761823947413,1.13643137,109980.0,109970.0,0.05712]
[1761823947616,1.41643137,109980.0,109960.0,0.05683]
[1761823947825,1.02696982,109970.0,109960.0,0.05683]
[1761823948015,1.75924357,109970.0,109960.0,0.05683]
[1761823948220,1.62185085,109970.0,109960.0,0.05683]
[1761823948809,1.62185085,109970.0,109960.0,0.05883]
[1761823949312,1.59738273,109970.0,109960.0,0.05883]
[1761823951210,1.59738273,109970.0,109960.0,0.05683]
[1761823951405,1.59738273,109970.0,109960.0,0.05883]
[1761823953118,1.69738273,109970.0,109960.0,0.05883]
[1761823954511,1.59738273,109970.0,109960.0,0.05883]
[1761823956816,1.58926558,109970.0,109960.0,0.05883]
[1761823959114,1.21152388,109970.0,109960.0,0.05883]
[1761823959321,1.44926558,109970.0,109960.0,0.05883]
[1761823959516,1.28539473,109970.0,109960.0,0.05883]
[1761823959817,1.44926558,109970.0,109960.0,0.05883]
[1761823965919,0.42676388,109970.0,109960.0,0.22270085]
[1761823966119,0.02147375,109970.0,109960.0,0.36494377]
[1761823966421,0.02,109970.0,109960.0,0.36494377]
[1761823966621,0.04147375,109970.0,109960.0,0.36222377]
[1761823966822,0.02147375,109970.0,109960.0,0.36494377]
[1761823967025,0.54619904,109980.0,109970.0,0.05802]
[1761823968218,0.72106989,109980.0,109970.0,0.05802]
[1761823969122,0.88494074,109980.0,109970.0,0.01385]
[1761823969315,1.39754802,109980.0,109960.0,0.05691]
[1761823969516,1.02693401,109970.0,109960.0,0.05691]
[1761823969716,1.2184622,109970.0,109960.0,0.05691]
[1761823970718,1.2184622,109970.0,109960.0,0.05891]
[1761823971121,1.3184622,109970.0,109960.0,0.01474]
[1761823971826,1.3184622,109970.0,109960.0,0.05891]
[1761823972325,1.3184622,109970.0,109960.0,0.05691]
[1761823972626,1.3194622,109970.0,109960.0,0.05691]
[1761823973227,1.3214622,109970.0,109960.0,0.05691]
[1761823973819,1.15759135,109970.0,109960.0,0.05691]
[1761823974024,1.2214622,109970.0,109960.0,0.05691]
[1761823975227,1.5014622,109970.0,109950.0,0.05691]
[1761823975526,0.87688486,109960.0,109950.0,0.05691]
[1761823975726,1.1845422,109960.0,109950.0,0.05691]
[1761823975919,1.34841305,109960.0,109950.0,0.05691]
[1761823976323,1.0345422,109960.0,109950.0,0.05691]
[1761823976824,1.01006989,109960.0,109950.0,0.05691]
[1761823977212,1.01106989,109960.0,109950.0,0.05691]
[1761823977828,1.0355422,109960.0,109950.0,0.05691]
[1761823981423,0.02252819,109960.0,109950.0,0.22350085]
[1761823981626,0.54914316,109980.0,109950.0,0.7949452]
[1761823981827,0.52467085,109980.0,109970.0,0.22189085]
[1761823983630,0.52667085,109980.0,109970.0,0.22189085]
[1761823984734,0.52767085,109980.0,109970.0,0.05802]
[1761823986226,0.6915417,109980.0,109970.0,0.05802]
[1761823987324,0.7315417,109980.0,109970.0,0.65802]
[1761823987730,0.7515417,109980.0,109970.0,0.05802]
[1761823987928,0.9915417,109980.0,109970.0,0.05802]
[1761823988734,1.17988486,109980.0,109970.0,0.01385]
[1761823988929,1.31988486,109980.0,109970.0,0.01385]
[1761823989236,1.15601401,109980.0,109970.0,0.05646]
[1761823989435,1.01601401,109980.0,109970.0,0.05646]
[1761823989932,1.31988486,109980.0,109960.0,0.05646]
[1761823990122,1.0024617,109970.0,109960.0,0.05646]
[1761823990324,1.03859085,109970.0,109960.0,0.05646]
[1761823991335,0.83859085,109970.0,109960.0,0.05646]
[1761823991637,0.84859085,109970.0,109960.0,0.05646]
[1761823992333,0.84959085,109970.0,109960.0,0.05646]
[1761823993334,0.53567085,109970.0,109960.0,0.05646]
[1761823993737,0.55687277,109970.0,109960.0,0.05646]
[1761823996237,0.54687277,109970.0,109960.0,0.05646]
[1761824000431,0.38300192,109970.0,109960.0,0.05646]
[1761824000631,0.54687277,109970.0,109960.0,0.05646]
[1761824000833,0.54687277,109970.0,109960.0,0.147402]
[1761824001038,0.54687277,109970.0,109960.0,0.22033085]
[1761824001240,0.02220192,109970.0,109960.0,0.4778637]
[1761824001439,0.02220192,109970.0,109960.0,0.8386637]
[1761824001755,0.3608,109980.0,109970.0,0.1338037]
[1761824002037,0.38201046,109980.0,109970.0,0.62512455]
[1761824002838,0.54588131,109980.0,109970.0,0.62512455]
[1761824003039,0.54688131,109980.0,109970.0,0.62512455]
[1761824003336,0.54788131,109980.0,109970.0,0.62512455]
[1761824005336,0.38401046,109980.0,109970.0,0.37032]
[1761824006043,0.40401046,109980.0,109970.0,0.37032]
[1761824006236,0.56781551,109980.0,109970.0,0.37032]
[1761824009250,0.54781551,109980.0,109970.0,0.37032]
[1761824009941,0.54781551,109980.0,109970.0,0.3702]
[1761824010739,0.38401046,109980.0,109970.0,0.05612]
[1761824011042,0.02321046,109980.0,109970.0,0.21992505]
[1761824011442,0.02321046,109980.0,109970.0,0.05612]
[1761824012144,0.02221046,109980.0,109970.0,0.05612]
[1761824012548,0.02221046,109980.0,109970.0,0.1470537]
[1761824019254,0.02221046,109980.0,109970.0,0.67437875]
[1761824022859,0.38527231,110000.0,109990.0,0.05783]
[1761824023160,0.40647662,110000.0,109990.0,0.05783]
[1761824023460,0.40647662,110000.0,109990.0,0.06699055]
[1761824023652,0.57028167,110000.0,109990.0,0.06699055]
[1761824024758,0.57228167,110000.0,109990.0,0.06699055]
[1761824025460,0.57528167,110000.0,109990.0,0.06699055]
[1761824026359,0.41147662,110000.0,109990.0,0.06699055]
[1761824026561,0.57528167,110000.0,109990.0,0.06699055]
[1761824027849,0.55080936,110000.0,109990.0,0.06699055]
[1761824030553,0.55080936,110000.0,109990.0,0.15790775]
[1761824030756,0.38700431,110000.0,109990.0,0.15790775]
[1761824031362,0.41147662,110000.0,109990.0,0.15790775]
[1761824031566,0.38700431,110000.0,109990.0,0.15790775]
[1761824031954,0.41147662,110000.0,109990.0,0.15790775]
[1761824032449,0.38700431,110000.0,109990.0,0.15790775]
[1761824042770,0.02620476,110000.0,109990.0,0.6825128]
[1761824043073,0.3608,110020.0,110010.0,0.1487307]
[1761824043465,0.50209325,110030.0,110020.0,0.05783]
[1761824043775,0.3382882,110030.0,110020.0,0.1487224]
[1761824044077,0.31384,110030.0,110020.0,0.05783]
[1761824045074,0.47964505,110030.0,110020.0,0.05783]
[1761824045676,0.83844505,110030.0,110020.0,0.05783]
[1761824045872,0.67464,110030.0,110020.0,0.05783]
[1761824046170,0.83944505,110030.0,110020.0,0.05783]
[1761824047071,0.67564,110030.0,110020.0,0.05783]
[1761824047272,0.83944505,110030.0,110020.0,0.05783]
[1761824048874,1.43944505,110030.0,110020.0,0.05783]
[1761824050471,1.27564,110030.0,110020.0,1.55783]
[1761824050672,1.43944505,110030.0,110020.0,1.55783]
[1761824053869,0.83944505,110030.0,110020.0,1.55783]
[1761824054970,0.86049559,110030.0,110020.0,1.55783]
[1761824055471,0.69669054,110030.0,110020.0,1.55783]
[1761824056980,0.38285054,110030.0,110020.0,1.55783]
[1761824057181,0.69661054,110030.0,110020.0,1.55783]
[1761824058776,0.49961559,110030.0,110020.0,1.55783]
[1761824058977,0.86041559,110030.0,110020.0,1.55783]
[1761824060972,0.69661054,110030.0,110020.0,1.55783]
[1761824061179,0.86041559,110030.0,110020.0,1.55783]
[1761824065275,0.86028976,110030.0,110020.0,1.55783]
[1761824067288,0.88473796,110030.0,110020.0,1.55783]
[1761824068889,0.72105874,110030.0,110020.0,1.55783]
[1761824069188,0.52393796,110030.0,110020.0,1.81240162]
[1761824069490,0.36025874,110030.0,110020.0,1.81240162]
[1761824069681,0.52393796,110030.0,110020.0,1.81240162]
[1761824069886,0.52393796,110030.0,110020.0,1.6487224]
[1761824070189,0.88473796,110030.0,110020.0,1.81240162]
[1761824071786,0.88473796,110030.0,110020.0,1.72150922]
[1761824072282,0.89289704,110030.0,110020.0,1.72150922]
[1761824072980,0.89289704,110030.0,110020.0,1.55783]
[1761824073185,0.89289704,110030.0,110020.0,1.72150922]
[1761824073691,0.89289704,110030.0,110020.0,1.55783]
[1761824073889,1.32921782,110030.0,110020.0,1.55783]
[1761824074091,1.49289704,110030.0,110020.0,1.55783]
[1761824075499,1.49289704,110030.0,110020.0,1.72150922]
[1761824075685,1.13657626,110030.0,110020.0,0.05783]
[1761824075878,1.38657626,110030.0,110020.0,0.05783]
[1761824076083,1.55296302,110030.0,110020.0,0.03617]
[1761824076597,1.55296302,110030.0,110020.0,0.05779]
[1761824077194,1.65296302,110030.0,110020.0,0.05779]
[1761824077396,1.65568302,110030.0,110010.0,0.05845]
[1761824077597,0.72080001,110020.0,110010.0,0.05845]
[1761824077908,1.0563307,110020.0,110010.0,0.03683]
[1761824078401,1.02368913,110020.0,110010.0,0.03683]
[1761824079600,1.02368913,110020.0,110010.0,0.03883]
[1761824079991,1.02368913,110020.0,110010.0,0.06045]
[1761824081694,0.64633069,110020.0,110010.0,0.22412922]
[1761824081997,0.49844976,110020.0,110010.0,0.22412922]
[1761824082309,0.85924976,110020.0,110010.0,0.22412922]
[1761824083103,0.87924976,110020.0,110010.0,0.22412922]
[1761824083403,0.90372991,110020.0,110010.0,0.22412922]
[1761824084296,0.94372991,110020.0,110010.0,0.22412922]
[1761824084605,0.94372991,110020.0,110010.0,0.06045]
[1761824085202,0.91924976,110020.0,110010.0,0.06045]
[1761824088311,0.60552976,110020.0,110010.0,0.06045]
[1761824088502,0.91924976,110020.0,110010.0,0.06045]
[1761824088897,0.89924976,110020.0,110010.0,0.06045]
[1761824089209,0.91924976,110020.0,110010.0,0.06045]
[1761824089412,0.89924976,110020.0,110010.0,0.06045]
[1761824089615,0.91924976,110020.0,110010.0,0.06045]
[1761824090713,0.02105054,110020.0,110010.0,0.48142914]
[1761824091016,0.3608,110030.0,110020.0,0.1492624]
[1761824091212,0.69900015,110040.0,110030.0,0.1357141]
[1761824091511,0.3608,110040.0,110030.0,0.31293332]
[1761824092306,0.3608,110050.0,110040.0,0.1492459]
[1761824092611,0.3608,110050.0,110040.0,0.47660434]
[1761824092810,0.86267937,110060.0,110050.0,0.1492376]
[1761824093113,0.91819922,110060.0,110050.0,0.31291682]
[1761824093905,0.91919922,110060.0,110050.0,0.31291682]
[1761824094610,0.75652,110060.0,110050.0,0.31291682]
[1761824094809,0.4428,110060.0,110050.0,0.31291682]
[1761824095015,0.60647922,110060.0,110050.0,0.22204922]
[1761824095719,0.60547922,110060.0,110050.0,0.31291682]
[1761824096013,0.52547922,110060.0,110050.0,0.31291682]
[1761824096212,0.3618,110060.0,110050.0,0.31291682]
[1761824096413,0.3618,110060.0,110050.0,0.15844444]
[1761824096608,0.52547922,110060.0,110050.0,0.32212366]
[1761824097115,0.52547922,110060.0,110050.0,0.15844444]
[1761824097312,0.52547922,110060.0,110050.0,0.23125606]
[1761824098115,0.52547922,110060.0,110050.0,0.32212366]
[1761824100518,0.3618,110060.0,110050.0,0.32212366]
[1761824101118,0.001,110060.0,110050.0,0.48580288]
[1761824101321,0.001,110060.0,110050.0,0.32212366]
[1761824102312,0.001,110060.0,110050.0,0.32484366]
[1761824102513,0.16467922,110060.0,110050.0,0.47208444]
[1761824102710,0.16467922,110060.0,110050.0,0.63576366]
[1761824103018,0.001,110060.0,110050.0,0.63576366]
[1761824104109,0.52447922,110070.0,110060.0,0.05837]
[1761824104311,0.54548183,110070.0,110060.0,0.22204922]
[1761824105019,0.54548183,110070.0,110060.0,0.05837]
[1761824105213,0.59548183,110070.0,110060.0,0.05837]
[1761824105514,0.54548183,110070.0,110060.0,0.31290862]
[1761824105818,0.38180261,110070.0,110060.0,0.47658784]
[1761824106018,0.3608,110070.0,110060.0,0.47658784]
[1761824106317,0.83807922,110080.0,110070.0,0.1500011]
[1761824106318,0.3608,110080.0,110070.0,0.1500011]
[1761824106526,0.3608,110080.0,110070.0,0.62728032]
[1761824107720,0.3608,110080.0,110070.0,0.47735954]
[1761824107920,0.3608,110080.0,110070.0,0.31368032]
[1761824108222,0.3608,110090.0,110080.0,0.1477928]
[1761824108412,0.38177804,110090.0,110080.0,0.47515124]
[1761824108613,0.3608,110090.0,110080.0,0.47515124]
[1761824108813,0.6744,110090.0,110080.0,0.47515124]
[1761824109411,0.3608,110090.0,110080.0,0.47515124]
[1761824109814,0.3638,110090.0,110080.0,0.47515124]
[1761824110015,0.6774,110090.0,110080.0,0.47515124]
[1761824110212,0.6804,110090.0,110080.0,0.47515124]
[1761824110820,0.3668,110090.0,110080.0,0.47515124]
[1761824111022,0.68036,110090.0,110080.0,0.47515124]
[1761824111222,0.3668,110090.0,110080.0,0.47515124]
[1761824111426,0.006,110090.0,110080.0,0.47515124]
[1761824111815,0.006,110090.0,110080.0,0.83595124]
[1761824112025,0.006,110090.0,110080.0,0.83867124]
[1761824112322,0.006,110090.0,110080.0,1.00235046]
[1761824112513,0.006,110090.0,110080.0,0.83867124]
[1761824112916,0.31356,110110.0,110100.0,0.1477764]
[1761824113117,0.3608,110120.0,110110.0,0.1477681]
[1761824113321,0.64528976,110120.0,110110.0,0.31144732]
[1761824113522,0.64528976,110120.0,110110.0,0.1477681]
[1761824113523,0.95880976,110120.0,110110.0,0.1477681]
[1761824113723,0.28448976,110120.0,110110.0,0.1477681]
[1761824113913,0.95880976,110120.0,110110.0,0.1477681]
[1761824114116,0.95880976,110120.0,110110.0,0.31144732]
[1761824114516,0.43433054,110120.0,110110.0,0.31144732]
[1761824114716,0.12081054,110120.0,110110.0,0.31144732]
[1761824114914,0.49800976,110120.0,110110.0,0.31144732]
[1761824115323,0.33433054,110120.0,110110.0,0.31144732]
[1761824115525,0.31552,110120.0,110110.0,0.31144732]
[1761824115728,0.31552,110120.0,110110.0,0.83592654]
[1761824115729,0.004,110120.0,110110.0,0.83592654]
[1761824116025,0.004,110120.0,110110.0,0.6812656]
[1761824117421,0.004,110120.0,110110.0,0.84766482]
[1761824117625,0.004,110120.0,110110.0,0.84494482]
[1761824117822,0.004,110120.0,110110.0,0.84766482]
[1761824119226,0.002,110120.0,110110.0,0.84866482]
[1761824119426,0.31348,110140.0,110130.0,0.0908016]
[1761824119625,0.31348,110140.0,110130.0,0.31143082]
[1761824119923,0.83795922,110150.0,110140.0,0.05695]
[1761824120124,0.87876494,110150.0,110140.0,0.22062922]
[1761824120322,0.87876494,110150.0,110140.0,0.05695]
[1761824120518,0.87872494,110150.0,110140.0,0.05695]
[1761824120724,0.87872494,110150.0,110140.0,0.22062922]
[1761824121326,0.87872494,110150.0,110140.0,0.05695]
[1761824122427,0.87972494,110150.0,110140.0,0.05695]
[1761824123925,0.87972494,110150.0,110140.0,0.22062922]
[1761824124233,0.87972494,110150.0,110140.0,0.05695]
[1761824124830,0.87972494,110150.0,110140.0,0.22062922]
[1761824125737,1.16340416,110150.0,110140.0,0.01334]
[1761824125929,1.55340416,110150.0,110130.0,0.01334]
[1761824126237,0.69087844,110140.0,110130.0,0.01334]
[1761824126435,1.22168416,110140.0,110120.0,0.05695]
[1761824126636,0.83787922,110130.0,110120.0,0.05695]
[1761824126835,0.90868494,110130.0,110120.0,0.05695]
[1761824127238,0.88868494,110130.0,110120.0,0.05695]
[1761824127538,0.90640088,110130.0,110120.0,0.05695]
[1761824128836,0.90640088,110130.0,110120.0,0.01334]
[1761824129241,0.87640088,110130.0,110120.0,0.01534]
[1761824129428,1.56979604,110130.0,110120.0,0.002]
[1761824129632,1.29409835,110130.0,110120.0,0.002]
[1761824129830,0.77730319,110130.0,110120.0,0.03673]
[1761824130032,1.14070319,110130.0,110120.0,0.03673]
[1761824131141,1.55409835,110130.0,110120.0,0.002]
[1761824131641,1.55681835,110130.0,110120.0,0.002]
[1761824131835,1.65781835,110130.0,110120.0,0.002]
[1761824132540,1.65781835,110130.0,110120.0,0.01334]
[1761824132541,1.65609835,110130.0,110120.0,0.01334]
[1761824132741,1.44609835,110130.0,110120.0,0.01334]
[1761824132939,1.28270319,110130.0,110120.0,0.01334]
[1761824133948,1.31534476,110130.0,110120.0,0.01334]
[1761824134137,1.28270319,110130.0,110120.0,0.05695]
[1761824134337,1.29104245,110130.0,110120.0,0.05695]
[1761824135246,1.15104245,110130.0,110120.0,0.05695]
[1761824137951,1.41104245,110130.0,110120.0,0.03473]
[1761824138144,1.41104245,110130.0,110120.0,0.01334]
[1761824138346,1.41104245,110130.0,110120.0,0.03543]
[1761824139350,2.01104245,110130.0,110120.0,0.03543]
[1761824139849,1.41104245,110130.0,110110.0,0.01373]
[1761824140055,0.54861995,110120.0,110110.0,0.05908]
[1761824140251,0.66942567,110120.0,110110.0,0.05908]
[1761824141359,0.66942567,110120.0,110110.0,0.06008]
[1761824141561,0.50603051,110120.0,110110.0,0.06008]
[1761824141860,0.66942567,110120.0,110110.0,0.06008]
[1761824142048,0.67042567,110120.0,110110.0,0.06008]
[1761824142250,0.70042567,110120.0,110110.0,0.06008]
[1761824143163,1.19042567,110120.0,110110.0,0.001]
[1761824143460,1.19042567,110120.0,110110.0,0.01414]
[1761824143646,1.19042567,110120.0,110110.0,0.001]
[1761824143847,1.03763649,110120.0,110110.0,0.001]
[1761824144158,1.00499492,110120.0,110110.0,0.001]
[1761824144359,0.98856408,110120.0,110110.0,0.001]
[1761824144561,0.99128408,110120.0,110110.0,0.001]
[1761824144859,1.09128408,110120.0,110110.0,0.001]
[1761824145263,1.42111492,110120.0,110090.0,0.01334]
[1761824145451,0.9094103,110100.0,110080.0,0.01314]
[1761824145651,0.83759516,110090.0,110080.0,0.05849]
[1761824145851,0.87840088,110090.0,110080.0,0.05849]
[1761824146255,0.90281602,110090.0,110080.0,0.05849]
[1761824146455,0.95281602,110090.0,110080.0,0.05849]
[1761824146656,0.95281602,110090.0,110080.0,0.06049]
[1761824147050,1.21281602,110090.0,110080.0,0.06549]
[1761824147662,1.21281602,110090.0,110080.0,0.06149]
[1761824148058,1.21281602,110090.0,110080.0,0.05949]
[1761824148264,1.18840088,110090.0,110080.0,0.05949]
[1761824149364,0.92840088,110090.0,110080.0,0.05949]
[1761824149863,0.76500572,110090.0,110080.0,0.05949]
[1761824150760,0.92840088,110090.0,110080.0,0.05949]
[1761824151263,1.07840088,110090.0,110080.0,0.05949]
[1761824152362,0.43160572,110090.0,110080.0,0.05949]
[1761824152560,0.74504572,110090.0,110080.0,0.05949]
[1761824153658,0.92844088,110090.0,110080.0,0.05949]
[1761824154056,0.90844088,110090.0,110080.0,0.05949]
[1761824154257,0.92844088,110090.0,110080.0,0.05949]
[1761824154458,0.90844088,110090.0,110080.0,0.05949]
[1761824155166,0.74504572,110090.0,110080.0,0.05949]
[1761824155362,0.90844088,110090.0,110080.0,0.05949]
[1761824159258,0.92844088,110090.0,110080.0,0.03623]
[1761824159661,0.92844088,110090.0,110080.0,0.05949]
[1761824159860,0.92851623,110090.0,110080.0,0.05949]
[1761824160268,0.90851623,110090.0,110080.0,0.05949]
[1761824160469,0.92851623,110090.0,110080.0,0.05949]
[1761824162070,1.32290675,110090.0,110080.0,0.001]
[1761824162270,1.42290675,110090.0,110080.0,0.001]
[1761824162468,1.32290675,110090.0,110080.0,0.03623]
[1761824162972,1.32290675,110090.0,110080.0,0.01414]
[1761824163168,1.01218675,110090.0,110080.0,0.001]
[1761824163468,1.01218675,110090.0,110070.0,0.01314]
[1761824163469,1.95822027,110090.0,110070.0,0.01314]
[1761824163670,0.52419516,110080.0,110070.0,0.01314]
[1761824163863,0.71507623,110080.0,110070.0,0.01314]
[1761824164663,0.73946675,110080.0,110070.0,0.01314]
[1761824164864,0.73946675,110080.0,110070.0,0.01514]
[1761824165860,0.73946675,110080.0,110070.0,0.03723]
[1761824166468,0.73946675,110080.0,110070.0,0.05881]
[1761824167971,0.71507623,110080.0,110070.0,0.05881]
[1761824168274,0.73946675,110080.0,110070.0,0.01514]
[1761824168975,0.86946675,110080.0,110070.0,0.002]
[1761824169180,1.25946675,110080.0,110070.0,0.002]
[1761824169475,1.15946675,110080.0,110070.0,0.01546]
[1761824171774,1.15946675,110080.0,110070.0,0.03666]
[1761824172370,1.19202027,110080.0,110070.0,0.03666]
[1761824172978,1.19202027,110080.0,110070.0,0.05824]
[1761824173371,1.16762975,110080.0,110070.0,0.05824]
[1761824175481,1.16762975,110080.0,110070.0,0.002]
[1761824176182,0.04531697,110080.0,110070.0,0.67460626]
[1761824176381,0.02088107,110080.0,110070.0,0.31380626]
[1761824177381,0.02088107,110080.0,110070.0,0.1504111]
[1761824179284,0.02088107,110080.0,110070.0,0.31380626]
[1761824181189,0.02088107,110080.0,110070.0,0.91380626]
[1761824183084,0.02088107,110080.0,110070.0,0.7504111]
[1761824183285,0.02088107,110080.0,110070.0,0.91380626]
[1761824184287,0.02088107,110080.0,110070.0,0.7504111]
[1761824184487,0.02088107,110080.0,110070.0,0.91380626]
[1761824187290,0.02088107,110080.0,110070.0,0.91390636]
[1761824189689,0.18437633,110080.0,110070.0,0.91390636]
[1761824192191,0.16349526,110080.0,110070.0,0.91390636]
[1761824192889,0.52429526,110090.0,110080.0,0.05756]
[1761824193187,0.54542304,110090.0,110080.0,0.31189816]
[1761824193495,0.38192778,110090.0,110080.0,0.47539342]
[1761824193689,0.3608,110100.0,110090.0,0.1483946]
[1761824193889,0.38193009,110100.0,110090.0,0.31188986]
[1761824194084,0.38193009,110100.0,110090.0,0.62532986]
[1761824194393,0.3608,110100.0,110090.0,0.62532986]
[1761824194784,0.3618,110100.0,110090.0,0.62532986]
[1761824195394,0.38292236,110100.0,110090.0,0.62532986]
[1761824196092,0.3618,110100.0,110090.0,0.62532986]
[1761824196286,0.38291886,110100.0,110090.0,0.62632986]
[1761824196487,0.38191886,110100.0,110090.0,0.63541912]
[1761824197186,0.54541412,110100.0,110090.0,0.63541912]
[1761824198693,0.54541412,110100.0,110090.0,0.62632986]
[1761824198896,0.73890938,110100.0,110090.0,0.372]
[1761824199101,0.57541412,110100.0,110090.0,0.372]
[1761824199292,0.57541412,110100.0,110090.0,0.4628346]
[1761824199493,0.57541412,110100.0,110090.0,0.1493946]
[1761824202799,0.41191886,110100.0,110090.0,0.1493946]
[1761824203000,0.57541412,110100.0,110090.0,0.1493946]
[1761824204705,0.73890938,110100.0,110090.0,0.05856]
[1761824207101,0.75890938,110100.0,110090.0,0.05856]
[1761824207503,0.78334528,110100.0,110090.0,0.05856]
[1761824209404,0.78334528,110100.0,110090.0,0.01481]
[1761824209603,0.78334528,110100.0,110090.0,0.0378]
[1761824210506,0.75334528,110100.0,110090.0,0.01481]
[1761824210706,0.95334528,110100.0,110090.0,0.01481]
[1761824211207,0.95334528,110100.0,110090.0,0.0378]
[1761824211817,0.95334528,110100.0,110090.0,0.0368]
[1761824211818,0.95634528,110100.0,110090.0,0.0368]
[1761824212108,0.95634528,110100.0,110090.0,0.05954]
[1761824212504,0.95734528,110100.0,110090.0,0.05954]
[1761824217310,1.10734528,110100.0,110090.0,0.05954]
[1761824219611,0.78035476,110100.0,110090.0,0.05954]
[1761824219817,1.10734528,110100.0,110090.0,0.05954]
[1761824221117,1.42074528,110100.0,110090.0,0.05954]
[1761824221918,1.78154528,110100.0,110090.0,0.05954]
[1761824223717,1.05994528,110100.0,110090.0,0.05954]
[1761824224016,1.78154528,110100.0,110090.0,0.05954]
[1761824228122,1.78154528,110100.0,110090.0,0.0368]
[1761824228324,1.78154528,110100.0,110090.0,0.05826]
[1761824233220,1.94504054,110100.0,110080.0,0.01362]
[1761824233411,0.71223952,110090.0,110080.0,0.01362]